[Event "Late-Titled-Tuesday-Blitz-July-09-2024"]
[Site "Chess.com"]
[Date "2024.07.09"]
[Round "8"]
[White "Seppppppy"]
[Black "subham777"]
[Result "0-1"]
[WhiteElo "2314"]
[BlackElo "2569"]
[TimeControl "180+1"]
[EndTime "15:27:17 PDT"]
[Termination "subham777 won by resignation"]

1. e4 {[%clk 0:03:00.9]} 1... e6 {[%clk 0:02:59.7]} 2. d4 {[%clk 0:03:00.5]}
2... d5 {[%clk 0:03:00.1]} 3. e5 {[%clk 0:03:00.7]} 3... c5 {[%clk 0:03:00.2]}
4. c3 {[%clk 0:03:01.2]} 4... Nc6 {[%clk 0:03:00.9]} 5. Nf3 {[%clk 0:03:01.5]}
5... Qb6 {[%clk 0:03:01.5]} 6. Be2 {[%clk 0:03:00.1]} 6... cxd4 {[%clk
0:03:01.6]} 7. cxd4 {[%clk 0:03:01]} 7... Bd7 {[%clk 0:03:00.4]} 8. Nc3 {[%clk
0:02:57.7]} 8... Nge7 {[%clk 0:02:59.6]} 9. O-O {[%clk 0:02:57.2]} 9... Nf5
{[%clk 0:02:58.4]} 10. Na4 {[%clk 0:02:53.9]} 10... Qd8 {[%clk 0:02:53.5]} 11.
a3 {[%clk 0:02:51]} 11... Be7 {[%clk 0:02:48.7]} 12. b4 {[%clk 0:02:50]} 12...
b6 {[%clk 0:02:41.1]} 13. Bb2 {[%clk 0:02:47.9]} 13... O-O {[%clk 0:02:38.4]}
14. Bd3 {[%clk 0:02:31.7]} 14... g6 {[%clk 0:02:31.8]} 15. Qd2 {[%clk
0:02:26.9]} 15... Ncxd4 {[%clk 0:02:23.6]} 16. Nxd4 {[%clk 0:02:08.7]} 16...
Bxa4 {[%clk 0:02:15.2]} 17. Nxf5 {[%clk 0:02:05.5]} 17... gxf5 {[%clk
0:02:07.5]} 18. f4 {[%clk 0:02:03.9]} 18... Kh8 {[%clk 0:02:02.6]} 19. Rf3
{[%clk 0:02:03]} 19... Rg8 {[%clk 0:02:00.3]} 20. Rh3 {[%clk 0:02:02]} 20... Rg7
{[%clk 0:01:56.9]} 21. Rf1 {[%clk 0:01:59.3]} 21... Qd7 {[%clk 0:01:52.7]} 22.
Rff3 {[%clk 0:01:58.4]} 22... Bb5 {[%clk 0:01:49.7]} 23. Rfg3 {[%clk 0:01:53.3]}
23... Rag8 {[%clk 0:01:47]} 24. Qe2 {[%clk 0:01:47.3]} 24... Bxd3 {[%clk
0:01:42.5]} 25. Qxd3 {[%clk 0:01:48.2]} 25... a5 {[%clk 0:01:40.4]} 26. b5
{[%clk 0:01:05.3]} 26... Qc7 {[%clk 0:01:22.7]} 27. Qc3 {[%clk 0:00:57.9]} 27...
Qxc3 {[%clk 0:01:11.6]} 28. Bxc3 {[%clk 0:00:58.8]} 28... Rxg3 {[%clk
0:01:05.7]} 29. hxg3 {[%clk 0:00:56.2]} 29... Bxa3 {[%clk 0:01:05.8]} 30. Rh6
{[%clk 0:00:50]} 30... Rxg3 {[%clk 0:01:00.7]} 31. Bd4 {[%clk 0:00:10.4]} 31...
Bc5 {[%clk 0:00:54.1]} 32. Bxc5 {[%clk 0:00:10.8]} 32... bxc5 {[%clk 0:00:54.8]}
33. Rh3 {[%clk 0:00:11.4]} 33... Rg8 {[%clk 0:00:48.9]} 34. Ra3 {[%clk
0:00:11.7]} 34... c4 {[%clk 0:00:44.7]} 35. Kf2 {[%clk 0:00:10.2]} 35... d4
{[%clk 0:00:39.9]} 36. Rxa5 {[%clk 0:00:09.8]} 36... c3 {[%clk 0:00:37.6]} 37.
Ke2 {[%clk 0:00:10]} 37... Rxg2+ {[%clk 0:00:37.1]} 38. Kd3 {[%clk 0:00:10.2]}
38... Rd2+ {[%clk 0:00:37.4]} 39. Kc4 {[%clk 0:00:09.5]} 39... c2 {[%clk
0:00:38.1]} 40. Ra1 {[%clk 0:00:09.7]} 40... Rd1 {[%clk 0:00:38.2]} 0-1

[Event "Late-Titled-Tuesday-Blitz-July-09-2024"]
[Site "Chess.com"]
[Date "2024.07.09"]
[Round "8"]
[White "ValeriyGrinev"]
[Black "artin10862"]
[Result "1-0"]
[WhiteElo "2703"]
[BlackElo "2919"]
[TimeControl "180+1"]
[EndTime "15:27:24 PDT"]
[Termination "ValeriyGrinev won on time"]

1. d4 {[%clk 0:03:00.9]} 1... e6 {[%clk 0:01:41.1]} 2. c4 {[%clk 0:02:59]} 2...
Bb4+ {[%clk 0:01:40.2]} 3. Nd2 {[%clk 0:02:58.6]} 3... d5 {[%clk 0:01:38.3]} 4.
Nf3 {[%clk 0:02:58.5]} 4... Nf6 {[%clk 0:01:38.3]} 5. e3 {[%clk 0:02:57.8]} 5...
O-O {[%clk 0:01:37.7]} 6. Bd3 {[%clk 0:02:57.9]} 6... b6 {[%clk 0:01:32.5]} 7.
O-O {[%clk 0:02:57.2]} 7... Bb7 {[%clk 0:01:33.1]} 8. Qe2 {[%clk 0:02:57.6]}
8... Nbd7 {[%clk 0:01:31.1]} 9. b3 {[%clk 0:02:57.3]} 9... c5 {[%clk 0:01:14.9]}
10. Bb2 {[%clk 0:02:57.1]} 10... cxd4 {[%clk 0:01:14.7]} 11. exd4 {[%clk
0:02:58]} 11... Bd6 {[%clk 0:01:12.7]} 12. Ne5 {[%clk 0:02:57.4]} 12... Rc8
{[%clk 0:01:10.1]} 13. Ndf3 {[%clk 0:02:57.6]} 13... Ne4 {[%clk 0:01:08.7]} 14.
Rac1 {[%clk 0:02:56.5]} 14... Ndf6 {[%clk 0:01:04.5]} 15. Rfd1 {[%clk
0:02:55.5]} 15... Bb8 {[%clk 0:01:02.3]} 16. Qe3 {[%clk 0:02:55.3]} 16... Nd6
{[%clk 0:01:01.5]} 17. h3 {[%clk 0:02:54.8]} 17... Nf5 {[%clk 0:00:42.6]} 18.
Qf4 {[%clk 0:02:53.4]} 18... Ne4 {[%clk 0:00:42.3]} 19. g4 {[%clk 0:02:49.4]}
19... g5 {[%clk 0:00:32]} 20. Qh2 {[%clk 0:02:47.8]} 20... Ng7 {[%clk
0:00:20.2]} 21. c5 {[%clk 0:02:27]} 21... f6 {[%clk 0:00:19.9]} 22. c6 {[%clk
0:02:26.8]} 22... Ba8 {[%clk 0:00:18.3]} 23. Ba6 {[%clk 0:02:24.3]} 23... fxe5
{[%clk 0:00:17.1]} 24. Nxe5 {[%clk 0:02:25.2]} 24... Rxf2 {[%clk 0:00:15.1]} 25.
Qh1 {[%clk 0:02:07.6]} 25... Rxb2 {[%clk 0:00:11.9]} 26. Bxc8 {[%clk 0:02:06.6]}
26... Bxe5 {[%clk 0:00:11.6]} 27. dxe5 {[%clk 0:01:59]} 27... Qxc8 {[%clk
0:00:11.7]} 28. c7 {[%clk 0:01:54.5]} 28... Ng3 {[%clk 0:00:06.2]} 29. Qf3
{[%clk 0:01:51]} 29... Ne2+ {[%clk 0:00:06.8]} 30. Kh1 {[%clk 0:01:50.2]} 30...
Nf4 {[%clk 0:00:07.7]} 31. Qc3 {[%clk 0:01:41.7]} 31... d4+ {[%clk 0:00:07.5]}
32. Kg1 {[%clk 0:01:39]} 32... dxc3 {[%clk 0:00:07.3]} 33. Rd8+ {[%clk 0:01:37]}
33... Kf7 {[%clk 0:00:07.2]} 34. Rxc8 {[%clk 0:01:37.2]} 34... Nxh3+ {[%clk
0:00:04]} 35. Kf1 {[%clk 0:01:36.2]} 35... Bg2+ {[%clk 0:00:04.2]} 36. Ke1
{[%clk 0:01:36.7]} 36... Bf3 {[%clk 0:00:04.6]} 37. Rf8+ {[%clk 0:01:34.9]}
37... Kxf8 {[%clk 0:00:05]} 38. c8=Q+ {[%clk 0:01:33.7]} 38... Kf7 {[%clk
0:00:05.7]} 39. Qxc3 {[%clk 0:01:28.8]} 39... Re2+ {[%clk 0:00:05.5]} 40. Kf1
{[%clk 0:01:27.2]} 40... Bxg4 {[%clk 0:00:06.1]} 41. Qc8 {[%clk 0:01:18.9]}
41... Rf2+ {[%clk 0:00:05.5]} 42. Ke1 {[%clk 0:01:18.4]} 42... Re2+ {[%clk
0:00:05.7]} 43. Kf1 {[%clk 0:01:19]} 43... Kg6 {[%clk 0:00:06]} 44. Rc7 {[%clk
0:01:14.9]} 44... Nf4 {[%clk 0:00:03]} 45. Qd7 {[%clk 0:01:05.6]} 45... Nfh5
{[%clk 0:00:01]} 46. Qd3+ {[%clk 0:00:59]} 1-0

[Event "Late-Titled-Tuesday-Blitz-July-09-2024"]
[Site "Chess.com"]
[Date "2024.07.09"]
[Round "8"]
[White "Itay121"]
[Black "mac0504"]
[Result "0-1"]
[WhiteElo "2533"]
[BlackElo "2764"]
[TimeControl "180+1"]
[EndTime "15:27:30 PDT"]
[Termination "mac0504 won on time"]

1. e4 {[%clk 0:03:00.9]} 1... Nc6 {[%clk 0:02:58.8]} 2. d4 {[%clk 0:03:00.2]}
2... d5 {[%clk 0:02:58.7]} 3. e5 {[%clk 0:02:52.4]} 3... Bf5 {[%clk 0:02:57.8]}
4. Nf3 {[%clk 0:02:49.6]} 4... Qd7 {[%clk 0:02:43.8]} 5. Bb5 {[%clk 0:02:41.9]}
5... a6 {[%clk 0:02:42.7]} 6. Ba4 {[%clk 0:02:42.1]} 6... b5 {[%clk 0:02:41.9]}
7. Bb3 {[%clk 0:02:42.1]} 7... Na5 {[%clk 0:02:42]} 8. O-O {[%clk 0:02:38.4]}
8... e6 {[%clk 0:02:40.4]} 9. c3 {[%clk 0:02:37.1]} 9... Nxb3 {[%clk 0:02:37.9]}
10. axb3 {[%clk 0:02:38]} 10... h6 {[%clk 0:02:33.9]} 11. Re1 {[%clk 0:02:16.8]}
11... Ne7 {[%clk 0:02:32.8]} 12. Nbd2 {[%clk 0:02:13.8]} 12... Nc6 {[%clk
0:02:22.8]} 13. Nf1 {[%clk 0:02:09.1]} 13... Be7 {[%clk 0:02:18.8]} 14. Ng3
{[%clk 0:02:01.8]} 14... Bg6 {[%clk 0:02:16.4]} 15. h4 {[%clk 0:01:56.5]} 15...
O-O {[%clk 0:02:11]} 16. h5 {[%clk 0:01:54.4]} 16... Bh7 {[%clk 0:02:11.3]} 17.
Nh2 {[%clk 0:01:53.1]} 17... a5 {[%clk 0:02:01.7]} 18. Ng4 {[%clk 0:01:49.4]}
18... Kh8 {[%clk 0:01:56.3]} 19. Qf3 {[%clk 0:01:29.4]} 19... b4 {[%clk
0:01:48.5]} 20. Bxh6 {[%clk 0:01:03]} 20... gxh6 {[%clk 0:01:47.3]} 21. Nf6
{[%clk 0:01:02.9]} 21... Qd8 {[%clk 0:01:40.4]} 22. Qf4 {[%clk 0:01:00.5]} 22...
Bxf6 {[%clk 0:01:37.8]} 23. exf6 {[%clk 0:01:01.4]} 23... Rg8 {[%clk 0:01:33.7]}
24. Qxh6 {[%clk 0:00:59.1]} 24... Qd6 {[%clk 0:01:30.8]} 25. Re3 {[%clk
0:00:44.6]} 25... bxc3 {[%clk 0:01:24]} 26. bxc3 {[%clk 0:00:44.3]} 26... Rab8
{[%clk 0:01:24.2]} 27. Rae1 {[%clk 0:00:36.5]} 27... Rg4 {[%clk 0:00:46]} 28.
Nf5 {[%clk 0:00:26.9]} 28... Qf4 {[%clk 0:00:33.3]} 29. f3 {[%clk 0:00:09.9]}
29... Rg5 {[%clk 0:00:12.7]} 30. Kf1 {[%clk 0:00:01.7]} 30... Qxf5 {[%clk
0:00:12]} 0-1

[Event "Late-Titled-Tuesday-Blitz-July-09-2024"]
[Site "Chess.com"]
[Date "2024.07.09"]
[Round "8"]
[White "norwaytoadog"]
[Black "Slovineanu"]
[Result "1-0"]
[WhiteElo "2361"]
[BlackElo "2515"]
[TimeControl "180+1"]
[EndTime "15:27:33 PDT"]
[Termination "norwaytoadog won by checkmate"]

1. e4 {[%clk 0:02:59.1]} 1... c6 {[%clk 0:02:59.5]} 2. d4 {[%clk 0:02:58.9]}
2... d5 {[%clk 0:03:00.4]} 3. e5 {[%clk 0:02:59.5]} 3... Bf5 {[%clk 0:02:59.9]}
4. Nf3 {[%clk 0:03:00]} 4... e6 {[%clk 0:02:59.9]} 5. Be2 {[%clk 0:03:00.6]}
5... Nd7 {[%clk 0:02:59]} 6. O-O {[%clk 0:03:00.4]} 6... a6 {[%clk 0:02:58.3]}
7. a4 {[%clk 0:02:59.4]} 7... h6 {[%clk 0:02:56.6]} 8. Nbd2 {[%clk 0:02:58.9]}
8... Ne7 {[%clk 0:02:54.1]} 9. Nb3 {[%clk 0:02:59.4]} 9... Rc8 {[%clk
0:02:50.8]} 10. Be3 {[%clk 0:02:52.1]} 10... Qc7 {[%clk 0:02:42.7]} 11. c4
{[%clk 0:02:44]} 11... dxc4 {[%clk 0:02:37.7]} 12. Bxc4 {[%clk 0:02:44.1]} 12...
Nb6 {[%clk 0:02:38]} 13. Qe2 {[%clk 0:02:08.6]} 13... Bg4 {[%clk 0:02:21.8]} 14.
Bd3 {[%clk 0:02:06.2]} 14... Nbd5 {[%clk 0:02:17.4]} 15. h3 {[%clk 0:02:03.1]}
15... Bxf3 {[%clk 0:02:13]} 16. gxf3 {[%clk 0:02:01.5]} 16... Nb4 {[%clk
0:02:11.7]} 17. Be4 {[%clk 0:02:00.9]} 17... Ned5 {[%clk 0:02:11.3]} 18. a5
{[%clk 0:01:54]} 18... Be7 {[%clk 0:02:09.5]} 19. Rac1 {[%clk 0:01:52.9]} 19...
Qd8 {[%clk 0:02:05]} 20. f4 {[%clk 0:01:52.2]} 20... g6 {[%clk 0:02:00.8]} 21.
Kh2 {[%clk 0:01:48.9]} 21... O-O {[%clk 0:01:45.7]} 22. Rg1 {[%clk 0:01:43]}
22... Kh7 {[%clk 0:01:46]} 23. Rg2 {[%clk 0:01:30.9]} 23... Rg8 {[%clk 0:01:45]}
24. Qf3 {[%clk 0:01:26]} 24... Bh4 {[%clk 0:01:36]} 25. Rg4 {[%clk 0:01:20.8]}
25... Be7 {[%clk 0:01:28.2]} 26. Rcg1 {[%clk 0:01:18.3]} 26... Qe8 {[%clk
0:01:21.5]} 27. f5 {[%clk 0:01:08.1]} 27... exf5 {[%clk 0:01:11.6]} 28. Bxf5
{[%clk 0:01:06]} 28... Nxe3 {[%clk 0:00:53.5]} 29. fxe3 {[%clk 0:00:55.4]} 29...
Rd8 {[%clk 0:00:53.4]} 30. e6 {[%clk 0:00:47.6]} 30... Bg5 {[%clk 0:00:48.8]}
31. exf7 {[%clk 0:00:29.1]} 31... Qxf7 {[%clk 0:00:48.6]} 32. Rxg5 {[%clk
0:00:24.8]} 32... hxg5 {[%clk 0:00:39.3]} 33. Qh5+ {[%clk 0:00:24.8]} 33... Kg7
{[%clk 0:00:39.7]} 34. Bxg6 {[%clk 0:00:19.6]} 34... Qf2+ {[%clk 0:00:13.4]} 35.
Rg2 {[%clk 0:00:20]} 35... Qxe3 {[%clk 0:00:12.2]} 36. Qh7+ {[%clk 0:00:19.4]}
36... Kf6 {[%clk 0:00:12.2]} 37. Qf7# {[%clk 0:00:18.4]} 1-0

[Event "Late-Titled-Tuesday-Blitz-July-09-2024"]
[Site "Chess.com"]
[Date "2024.07.09"]
[Round "8"]
[White "TigrVShlyape"]
[Black "Individoom"]
[Result "1-0"]
[WhiteElo "2972"]
[BlackElo "2756"]
[TimeControl "180+1"]
[EndTime "15:27:40 PDT"]
[Termination "TigrVShlyape won by resignation"]

1. e4 {[%clk 0:03:00.9]} 1... c5 {[%clk 0:02:55.1]} 2. Nf3 {[%clk 0:03:00.8]}
2... e6 {[%clk 0:02:55]} 3. d4 {[%clk 0:03:00.7]} 3... cxd4 {[%clk 0:02:55.3]}
4. Nxd4 {[%clk 0:03:01.2]} 4... a6 {[%clk 0:02:55.7]} 5. Nc3 {[%clk 0:03:00.4]}
5... Qc7 {[%clk 0:02:55.6]} 6. Qf3 {[%clk 0:03:00.1]} 6... Nf6 {[%clk
0:02:53.4]} 7. Qg3 {[%clk 0:02:59.2]} 7... d6 {[%clk 0:02:48.3]} 8. Bd3 {[%clk
0:02:52.8]} 8... b5 {[%clk 0:02:44.6]} 9. a3 {[%clk 0:02:52.5]} 9... Bb7 {[%clk
0:02:43.8]} 10. O-O {[%clk 0:02:52.4]} 10... Nc6 {[%clk 0:02:24.5]} 11. Nxc6
{[%clk 0:02:49.5]} 11... Bxc6 {[%clk 0:02:24.3]} 12. Bd2 {[%clk 0:02:46.9]}
12... Be7 {[%clk 0:02:09.5]} 13. Qxg7 {[%clk 0:02:41]} 13... Rg8 {[%clk
0:02:09.1]} 14. Qh6 {[%clk 0:02:41]} 14... d5 {[%clk 0:01:44]} 15. exd5 {[%clk
0:02:09.9]} 15... Nxd5 {[%clk 0:01:43.3]} 16. Nxd5 {[%clk 0:02:00.5]} 16... Bxd5
{[%clk 0:01:42.8]} 17. f3 {[%clk 0:01:59.8]} 17... O-O-O {[%clk 0:01:34.6]} 18.
Kh1 {[%clk 0:01:57.4]} 18... Bd6 {[%clk 0:01:01]} 19. a4 {[%clk 0:01:52.5]}
19... b4 {[%clk 0:00:57.9]} 20. Bxa6+ {[%clk 0:01:51.5]} 20... Kb8 {[%clk
0:00:57.9]} 21. Bd3 {[%clk 0:01:50]} 21... Be5 {[%clk 0:00:53]} 22. Qh4 {[%clk
0:01:45.3]} 22... Ka8 {[%clk 0:00:44.8]} 23. Qxb4 {[%clk 0:01:42.5]} 23... Bxh2
{[%clk 0:00:41.8]} 24. Qa5+ {[%clk 0:01:42.5]} 24... Kb8 {[%clk 0:00:37.5]} 25.
Qxc7+ {[%clk 0:01:42]} 25... Bxc7 {[%clk 0:00:37]} 26. Be3 {[%clk 0:01:37.8]}
26... h5 {[%clk 0:00:35.2]} 27. Rad1 {[%clk 0:01:32.5]} 27... h4 {[%clk
0:00:34.8]} 28. Be4 {[%clk 0:01:18.3]} 28... h3 {[%clk 0:00:32.4]} 29. g4 {[%clk
0:00:58.7]} 29... f5 {[%clk 0:00:31.7]} 30. Bxd5 {[%clk 0:00:57.3]} 30... exd5
{[%clk 0:00:32.6]} 31. gxf5 {[%clk 0:00:53.7]} 31... Rde8 {[%clk 0:00:29.3]} 32.
Bc5 {[%clk 0:00:33.1]} 32... Rg2 {[%clk 0:00:25.1]} 33. Rf2 {[%clk 0:00:32.7]}
33... Re2 {[%clk 0:00:22.4]} 34. Rxe2 {[%clk 0:00:30.1]} 34... Rxe2 {[%clk
0:00:22.2]} 35. Bg1 {[%clk 0:00:21.7]} 35... h2 {[%clk 0:00:07.1]} 36. Bd4
{[%clk 0:00:20.6]} 36... Rxc2 {[%clk 0:00:07.1]} 37. f6 {[%clk 0:00:21]} 37...
Bd6 {[%clk 0:00:06.4]} 38. f7 {[%clk 0:00:19.1]} 38... Rc7 {[%clk 0:00:05.2]}
39. Be5 {[%clk 0:00:19]} 1-0

[Event "Late-Titled-Tuesday-Blitz-July-09-2024"]
[Site "Chess.com"]
[Date "2024.07.09"]
[Round "8"]
[White "1g60-1"]
[Black "rhungaski"]
[Result "1/2-1/2"]
[WhiteElo "2483"]
[BlackElo "2632"]
[TimeControl "180+1"]
[EndTime "15:27:40 PDT"]
[Termination "Game drawn by repetition"]

1. e4 {[%clk 0:03:00.9]} 1... e6 {[%clk 0:02:59.4]} 2. d4 {[%clk 0:02:56]} 2...
d5 {[%clk 0:02:59.7]} 3. Nd2 {[%clk 0:02:56.3]} 3... c5 {[%clk 0:02:55.6]} 4.
exd5 {[%clk 0:02:55.4]} 4... exd5 {[%clk 0:02:54.5]} 5. Ngf3 {[%clk 0:02:55.2]}
5... a6 {[%clk 0:02:47.7]} 6. dxc5 {[%clk 0:02:49.9]} 6... Bxc5 {[%clk
0:02:48.6]} 7. Nb3 {[%clk 0:02:49.6]} 7... Bb6 {[%clk 0:02:41.9]} 8. Bd3 {[%clk
0:02:49.5]} 8... Nf6 {[%clk 0:02:39.4]} 9. O-O {[%clk 0:02:46.3]} 9... O-O
{[%clk 0:02:38]} 10. h3 {[%clk 0:02:35.8]} 10... h6 {[%clk 0:02:22.6]} 11. Nbd4
{[%clk 0:02:21.6]} 11... Qd6 {[%clk 0:02:17.9]} 12. c3 {[%clk 0:02:16.3]} 12...
Re8 {[%clk 0:02:04.3]} 13. Be3 {[%clk 0:02:11.9]} 13... Bc7 {[%clk 0:02:02.7]}
14. Re1 {[%clk 0:02:03.5]} 14... Ne4 {[%clk 0:02:01.4]} 15. Ne2 {[%clk
0:01:52.3]} 15... Qf6 {[%clk 0:01:38.1]} 16. Bd4 {[%clk 0:01:44.2]} 16... Qg6
{[%clk 0:01:30.2]} 17. Ng3 {[%clk 0:01:27.4]} 17... Bxg3 {[%clk 0:01:25.9]} 18.
fxg3 {[%clk 0:01:25.3]} 18... Qxg3 {[%clk 0:01:16.8]} 19. Kh1 {[%clk 0:01:00.8]}
19... Nc6 {[%clk 0:01:08.8]} 20. Bxe4 {[%clk 0:00:53.2]} 20... Rxe4 {[%clk
0:00:43.7]} 21. Rxe4 {[%clk 0:00:44.3]} 21... dxe4 {[%clk 0:00:44.6]} 22. Ng1
{[%clk 0:00:44.5]} 22... Be6 {[%clk 0:00:38.6]} 23. Ne2 {[%clk 0:00:42]} 23...
Qh4 {[%clk 0:00:35.5]} 24. b3 {[%clk 0:00:35.1]} 24... Rd8 {[%clk 0:00:31.4]}
25. Qe1 {[%clk 0:00:33.4]} 25... Qxe1+ {[%clk 0:00:25.6]} 26. Rxe1 {[%clk
0:00:34.3]} 26... g5 {[%clk 0:00:23.1]} 27. Kg1 {[%clk 0:00:32]} 27... f5 {[%clk
0:00:20.7]} 28. Kf2 {[%clk 0:00:28.3]} 28... f4 {[%clk 0:00:19]} 29. h4 {[%clk
0:00:23.4]} 29... e3+ {[%clk 0:00:17.7]} 30. Kg1 {[%clk 0:00:19.3]} 30... Bg4
{[%clk 0:00:17]} 31. hxg5 {[%clk 0:00:17.4]} 31... hxg5 {[%clk 0:00:17.9]} 32.
Bf6 {[%clk 0:00:17]} 32... Rd6 {[%clk 0:00:13.6]} 33. Bxg5 {[%clk 0:00:16]}
33... Bxe2 {[%clk 0:00:12.4]} 34. Rxe2 {[%clk 0:00:15.2]} 34... Rd2 {[%clk
0:00:12]} 35. Kf1 {[%clk 0:00:10.4]} 35... Rd1+ {[%clk 0:00:08]} 36. Re1 {[%clk
0:00:10.3]} 36... Rd2 {[%clk 0:00:07.8]} 37. Re2 {[%clk 0:00:10.7]} 37... Rd1+
{[%clk 0:00:08]} 38. Re1 {[%clk 0:00:11.2]} 38... Rd2 {[%clk 0:00:08.6]} 39. Re2
{[%clk 0:00:11.7]} 1/2-1/2

[Event "Late-Titled-Tuesday-Blitz-July-09-2024"]
[Site "Chess.com"]
[Date "2024.07.09"]
[Round "8"]
[White "WildTricks"]
[Black "MatthewG-p4p"]
[Result "1-0"]
[WhiteElo "2720"]
[BlackElo "2908"]
[TimeControl "180+1"]
[EndTime "15:27:42 PDT"]
[Termination "WildTricks won on time"]

1. e4 {[%clk 0:03:00.9]} 1... e6 {[%clk 0:03:00]} 2. d4 {[%clk 0:03:00.4]} 2...
d5 {[%clk 0:03:00.9]} 3. Nd2 {[%clk 0:02:59.8]} 3... a6 {[%clk 0:03:00.7]} 4.
Ngf3 {[%clk 0:02:59.2]} 4... Nf6 {[%clk 0:03:00.2]} 5. e5 {[%clk 0:02:59.1]}
5... Nfd7 {[%clk 0:02:59.9]} 6. c3 {[%clk 0:02:59.5]} 6... c5 {[%clk 0:03:00.8]}
7. Bd3 {[%clk 0:02:59.4]} 7... Nc6 {[%clk 0:03:01.7]} 8. O-O {[%clk 0:02:59]}
8... g5 {[%clk 0:02:59.9]} 9. b3 {[%clk 0:02:59.3]} 9... g4 {[%clk 0:02:59]} 10.
Ne1 {[%clk 0:02:59.2]} 10... cxd4 {[%clk 0:02:58.6]} 11. cxd4 {[%clk 0:02:59.8]}
11... Nxd4 {[%clk 0:02:59.5]} 12. Qxg4 {[%clk 0:02:59.7]} 12... Nc6 {[%clk
0:02:59.8]} 13. Bb2 {[%clk 0:02:59.6]} 13... h5 {[%clk 0:02:56.9]} 14. Qe2
{[%clk 0:02:59.1]} 14... Nc5 {[%clk 0:02:48.2]} 15. f4 {[%clk 0:02:56.8]} 15...
Bd7 {[%clk 0:02:46.9]} 16. Kh1 {[%clk 0:02:55.7]} 16... Qb6 {[%clk 0:02:45.5]}
17. Ndf3 {[%clk 0:02:47.6]} 17... h4 {[%clk 0:02:35.3]} 18. Ng5 {[%clk
0:02:42.5]} 18... Ne7 {[%clk 0:02:34.1]} 19. f5 {[%clk 0:02:35.8]} 19... Nxd3
{[%clk 0:02:32.3]} 20. Nxd3 {[%clk 0:02:18.8]} 20... Rg8 {[%clk 0:01:43.5]} 21.
Nxf7 {[%clk 0:02:18]} 21... Nxf5 {[%clk 0:01:26.8]} 22. Qh5 {[%clk 0:02:08.6]}
22... Qe3 {[%clk 0:00:56]} 23. Nh6+ {[%clk 0:01:36.3]} 23... Kd8 {[%clk
0:00:53.6]} 24. Nxg8 {[%clk 0:01:36.3]} 24... Qxd3 {[%clk 0:00:51]} 25. Rac1
{[%clk 0:01:34.8]} 25... Bc6 {[%clk 0:00:43.4]} 26. Qf7 {[%clk 0:01:19.8]} 26...
h3 {[%clk 0:00:22.6]} 27. Rf2 {[%clk 0:00:45]} 27... hxg2+ {[%clk 0:00:22.3]}
28. Rxg2 {[%clk 0:00:44.1]} 28... d4 {[%clk 0:00:11.6]} 29. Qxf8+ {[%clk
0:00:29.7]} 29... Kc7 {[%clk 0:00:11.8]} 30. Qxa8 {[%clk 0:00:23]} 30... Ne3
{[%clk 0:00:06.4]} 31. Ba3 {[%clk 0:00:12.4]} 31... Nxg2 {[%clk 0:00:05.5]} 32.
Bd6+ {[%clk 0:00:12.3]} 32... Kb6 {[%clk 0:00:06.1]} 33. Qd8+ {[%clk 0:00:12.3]}
33... Ka7 {[%clk 0:00:01]} 34. Bc5+ {[%clk 0:00:11.9]} 1-0

[Event "Late-Titled-Tuesday-Blitz-July-09-2024"]
[Site "Chess.com"]
[Date "2024.07.09"]
[Round "8"]
[White "dodorox"]
[Black "NajdorfPlayerc5"]
[Result "0-1"]
[WhiteElo "2183"]
[BlackElo "2395"]
[TimeControl "180+1"]
[EndTime "15:27:47 PDT"]
[Termination "NajdorfPlayerc5 won on time"]

1. d4 {[%clk 0:03:00.9]} 1... Nf6 {[%clk 0:02:59.5]} 2. c4 {[%clk 0:03:00.8]}
2... e6 {[%clk 0:02:59.3]} 3. Nc3 {[%clk 0:03:00.3]} 3... Bb4 {[%clk 0:02:59.1]}
4. Bd2 {[%clk 0:03:00.9]} 4... O-O {[%clk 0:02:57]} 5. e3 {[%clk 0:03:00.5]}
5... c5 {[%clk 0:02:53.3]} 6. a3 {[%clk 0:02:56.3]} 6... Bxc3 {[%clk 0:02:51.9]}
7. Bxc3 {[%clk 0:02:56.9]} 7... cxd4 {[%clk 0:02:52.2]} 8. exd4 {[%clk
0:02:56.6]} 8... d5 {[%clk 0:02:52.4]} 9. Nf3 {[%clk 0:02:57.1]} 9... Nc6 {[%clk
0:02:52.2]} 10. Bd3 {[%clk 0:02:55.2]} 10... dxc4 {[%clk 0:02:51.8]} 11. Bxc4
{[%clk 0:02:56.1]} 11... b6 {[%clk 0:02:51.3]} 12. O-O {[%clk 0:02:52.2]} 12...
Bb7 {[%clk 0:02:51.3]} 13. Qe2 {[%clk 0:02:46.2]} 13... Nd5 {[%clk 0:02:48.6]}
14. Bd2 {[%clk 0:02:29.9]} 14... Rc8 {[%clk 0:02:48.3]} 15. Rad1 {[%clk
0:02:12.9]} 15... Nce7 {[%clk 0:02:43.1]} 16. Ba2 {[%clk 0:02:07.3]} 16... Ng6
{[%clk 0:02:42.4]} 17. Ne5 {[%clk 0:01:58]} 17... Ndf4 {[%clk 0:02:33.1]} 18.
Bxf4 {[%clk 0:01:34.9]} 18... Nxf4 {[%clk 0:02:34]} 19. Qg4 {[%clk 0:01:32.8]}
19... Nxg2 {[%clk 0:02:25.6]} 20. d5 {[%clk 0:01:12.8]} 20... Nh4 {[%clk
0:02:25.5]} 21. dxe6 {[%clk 0:01:09.7]} 21... Qf6 {[%clk 0:02:25.6]} 22. Nd7
{[%clk 0:00:54.9]} 22... Nf3+ {[%clk 0:02:24.1]} 23. Kh1 {[%clk 0:00:43.5]}
23... Qh6 {[%clk 0:00:43.1]} 24. Qg2 {[%clk 0:00:27.6]} 24... Nxh2 {[%clk
0:00:40.6]} 25. Qxb7 {[%clk 0:00:20.4]} 25... Ng4+ {[%clk 0:00:39.7]} 26. Kg2
{[%clk 0:00:18.4]} 26... Qh2+ {[%clk 0:00:40.5]} 27. Kf3 {[%clk 0:00:17.3]}
27... fxe6+ {[%clk 0:00:41.4]} 28. Nxf8 {[%clk 0:00:10.5]} 28... Rxf8+ {[%clk
0:00:39.2]} 29. Ke2 {[%clk 0:00:08.9]} 29... Qe5+ {[%clk 0:00:16.2]} 30. Kd2
{[%clk 0:00:06.3]} 30... Qxb2+ {[%clk 0:00:15.9]} 31. Ke1 {[%clk 0:00:02.1]}
31... Qxa2 {[%clk 0:00:14.5]} 32. Qe4 {[%clk 0:00:02.1]} 32... Rf5 {[%clk
0:00:07.1]} 0-1